[Event "Torneo Nuevo Centro. Jornada 10"]
[Site "Chess.com"]
[Date "2020.08.21"]
[Round "2"]
[White "Bosch Jordà, Ricard"]
[Black "Sampedro Roig, Josep Francesc"]
[Result "0-1"]
[WhiteElo "1933"]
[BlackElo "1824"]
[TimeControl "180+2"]
[EndTime "10:46:51 PDT"]
[Termination "Victoria de Abrekurios por tiempo"]

1. e4 {[%clk 0:03:01.9]} 1... Nf6 {[%clk 0:03:00.7]} 2. Nc3 {[%clk 0:02:57.6]}
2... d5 {[%clk 0:03:01.6]} 3. exd5 {[%clk 0:02:54.1]} 3... Nxd5 {[%clk
0:03:02.4]} 4. Nxd5 {[%clk 0:02:54.7]} 4... Qxd5 {[%clk 0:03:03.1]} 5. Nf3
{[%clk 0:02:55.9]} 5... e5 {[%clk 0:03:03.8]} 6. c4 {[%clk 0:02:50.7]} 6... Qa5
{[%clk 0:02:59.8]} 7. Be2 {[%clk 0:02:47.6]} 7... Be7 {[%clk 0:02:54.4]} 8. O-O
{[%clk 0:02:48.3]} 8... O-O {[%clk 0:02:54.9]} 9. d3 {[%clk 0:02:47.4]} 9... Nc6
{[%clk 0:02:52.1]} 10. a3 {[%clk 0:02:42.3]} 10... Bf5 {[%clk 0:02:49.3]} 11.
Be3 {[%clk 0:02:27.4]} 11... Nd4 {[%clk 0:01:43.6]} 12. Nxd4 {[%clk 0:02:04.1]}
12... exd4 {[%clk 0:01:41.2]} 13. Bxd4 {[%clk 0:02:03.1]} 13... Bg6 {[%clk
0:01:38.4]} 14. Bc3 {[%clk 0:01:46.6]} 14... Qf5 {[%clk 0:01:32.7]} 15. d4
{[%clk 0:01:18.1]} 15... Rad8 {[%clk 0:01:32.2]} 16. Re1 {[%clk 0:01:13.6]}
16... c5 {[%clk 0:01:26.6]} 17. d5 {[%clk 0:01:08.5]} 17... Bd6 {[%clk
0:01:27.5]} 18. Bg4 {[%clk 0:00:36.2]} 18... Qf4 {[%clk 0:01:27.4]} 19. b3
{[%clk 0:00:22.1]} 19... Qxh2+ {[%clk 0:01:27.2]} 20. Kf1 {[%clk 0:00:22.3]}
20... Rfe8 {[%clk 0:01:28.2]} 21. f3 {[%clk 0:00:08.1]} 21... Bg3 {[%clk
0:01:26.7]} 22. Rxe8+ {[%clk 0:00:05.8]} 22... Rxe8 {[%clk 0:01:27.7]} 23. Be5
{[%clk 0:00:02.6]} 23... Qh1+ {[%clk 0:01:27.5]} 24. Ke2 {[%clk 0:00:02.7]}
24... Rxe5+ {[%clk 0:01:27.8]} 25. Kd2 {[%clk 0:00:02.1]} 25... Qxg2+ {[%clk
0:01:28.4]} 26. Kc3 {[%clk 0:00:02.5]} 26... Re3+ {[%clk 0:01:26.6]} 0

[Event "Torneo Nuevo Centro. Jornada 10"]
[Site "Chess.com"]
[Date "2020.08.21"]
[Round "2"]
[White "Ledezma Fortes, Jose Manuel"]
[Black "Serrano Requena, Guillem"]
[Result "1-0"]
[WhiteElo "1797"]
[BlackElo "1266"]
[TimeControl "180+2"]
[EndTime "10:46:51 PDT"]
[Termination "Victoria de josema54 por jaque mate"]

1. c4 {[%clk 0:02:33.7]} 1... c5 {[%clk 0:02:58.6]} 2. Nc3 {[%clk 0:02:32.5]}
2... Nf6 {[%clk 0:02:49.1]} 3. d3 {[%clk 0:02:33]} 3... e5 {[%clk 0:02:46]} 4.
Bg5 {[%clk 0:02:32.3]} 4... Nc6 {[%clk 0:02:45]} 5. Nf3 {[%clk 0:02:32.8]} 5...
d6 {[%clk 0:02:43.8]} 6. e3 {[%clk 0:02:33]} 6... Be7 {[%clk 0:02:32.3]} 7. Be2
{[%clk 0:02:33.2]} 7... O-O {[%clk 0:02:31.1]} 8. O-O {[%clk 0:02:33.1]} 8... a6
{[%clk 0:02:16.5]} 9. a3 {[%clk 0:02:33.4]} 9... Rb8 {[%clk 0:02:14.9]} 10. Nd2
{[%clk 0:02:26]} 10... Be6 {[%clk 0:02:09.8]} 11. Bf3 {[%clk 0:02:25.7]} 11...
Qd7 {[%clk 0:02:00.2]} 12. Rb1 {[%clk 0:02:25.6]} 12... b5 {[%clk 0:02:00.4]}
13. cxb5 {[%clk 0:02:25.4]} 13... axb5 {[%clk 0:02:01.2]} 14. Bxf6 {[%clk
0:02:24.2]} 14... Bxf6 {[%clk 0:01:53.5]} 15. Nde4 {[%clk 0:02:24.4]} 15... Be7
{[%clk 0:01:46.1]} 16. h3 {[%clk 0:02:22.5]} 16... b4 {[%clk 0:01:45.5]} 17.
axb4 {[%clk 0:02:21.1]} 17... Nxb4 {[%clk 0:01:46.2]} 18. Qe2 {[%clk 0:02:15.5]}
18... Bf5 {[%clk 0:01:28.3]} 19. Rfd1 {[%clk 0:02:12.8]} 19... Rb6 {[%clk
0:01:04]} 20. Ng3 {[%clk 0:02:10.1]} 20... Bg6 {[%clk 0:00:58.5]} 21. Nd5 {[%clk
0:02:08.2]} 21... Nxd5 {[%clk 0:00:50.4]} 22. Bxd5 {[%clk 0:02:08]} 22... Rb3
{[%clk 0:00:49.5]} 23. Bxb3 {[%clk 0:02:03]} 23... Qb5 {[%clk 0:00:50.7]} 24.
Bc4 {[%clk 0:02:02.3]} 24... Qb7 {[%clk 0:00:50.6]} 25. e4 {[%clk 0:01:58.2]}
25... Qc7 {[%clk 0:00:45.3]} 26. Nf5 {[%clk 0:01:58.5]} 26... Bf6 {[%clk
0:00:45]} 27. b4 {[%clk 0:01:56.7]} 27... cxb4 {[%clk 0:00:44.7]} 28. Rxb4
{[%clk 0:01:56.6]} 28... Ra8 {[%clk 0:00:43.1]} 29. Rdb1 {[%clk 0:01:56.8]}
29... h6 {[%clk 0:00:37.4]} 30. Rb7 {[%clk 0:01:56.1]} 30... Qd8 {[%clk
0:00:35.4]} 31. Kh2 {[%clk 0:01:55.1]} 31... Kh7 {[%clk 0:00:25.2]} 32. Qg4
{[%clk 0:01:55.2]} 32... Qa5 {[%clk 0:00:25.3]} 33. Bxf7 {[%clk 0:01:53.2]}
33... Ra7 {[%clk 0:00:22.5]} 34. Qxg6+ {[%clk 0:01:51.7]} 34... Kh8 {[%clk
0:00:22.6]} 35. Rb8+ {[%clk 0:01:52.2]} 35... Bd8 {[%clk 0:00:22.9]} 36. Qxg7#
{[%clk 0:01:49.8]} 1

[Event "Torneo Nuevo Centro. Jornada 10"]
[Site "Chess.com"]
[Date "2020.08.21"]
[Round "2"]
[White "Pardo Ruiz, Carlos"]
[Black "Valero Martinez, Óscar"]
[Result "1-0"]
[WhiteElo "1691"]
[BlackElo "1122"]
[TimeControl "180+2"]
[EndTime "10:46:54 PDT"]
[Termination "Victoria de Carlitoscarlsen por jaque mate"]

1. e4 {[%clk 0:03:01.9]} 1... e5 {[%clk 0:03:00.4]} 2. Nf3 {[%clk 0:03:02.6]}
2... Nc6 {[%clk 0:02:57.5]} 3. Bc4 {[%clk 0:03:02.6]} 3... Nf6 {[%clk
0:02:56.5]} 4. Ng5 {[%clk 0:03:03.1]} 4... Bc5 {[%clk 0:02:58.4]} 5. Bxf7+
{[%clk 0:03:02.2]} 5... Kf8 {[%clk 0:02:53.6]} 6. Bb3 {[%clk 0:03:00.3]} 6...
Ng4 {[%clk 0:02:52.4]} 7. Qxg4 {[%clk 0:02:57.3]} 7... d6 {[%clk 0:02:45.3]} 8.
Qf3+ {[%clk 0:02:56.7]} 8... Qf6 {[%clk 0:01:58.9]} 9. Qxf6+ {[%clk 0:02:53.9]}
9... gxf6 {[%clk 0:01:59.2]} 10. Ne6+ {[%clk 0:02:54.1]} 10... Bxe6 {[%clk
0:01:53.1]} 11. Bxe6 {[%clk 0:02:56]} 11... Nd4 {[%clk 0:01:47.1]} 12. Bb3
{[%clk 0:02:55.7]} 12... Rg8 {[%clk 0:01:41.9]} 13. Bxg8 {[%clk 0:02:54.9]}
13... Nxc2+ {[%clk 0:01:32.6]} 14. Kd1 {[%clk 0:02:54]} 14... Nxa1 {[%clk
0:01:31.5]} 15. Bxh7 {[%clk 0:02:54.1]} 15... Bxf2 {[%clk 0:01:28.4]} 16. b3
{[%clk 0:02:52.2]} 16... Bd4 {[%clk 0:01:24.1]} 17. Nc3 {[%clk 0:02:51.9]} 17...
a5 {[%clk 0:01:22.1]} 18. Bb2 {[%clk 0:02:52]} 18... Kg7 {[%clk 0:01:09.8]} 19.
Bf5 {[%clk 0:02:50.8]} 19... Nxb3 {[%clk 0:01:00.4]} 20. axb3 {[%clk 0:02:49.1]}
20... b5 {[%clk 0:00:53]} 21. h4 {[%clk 0:02:46.4]} 21... b4 {[%clk 0:00:53.5]}
22. Na4 {[%clk 0:02:46.8]} 22... Bf2 {[%clk 0:00:42.5]} 23. h5 {[%clk
0:02:46.3]} 23... Rh8 {[%clk 0:00:41.8]} 24. Ke2 {[%clk 0:02:42.2]} 24... Ba7
{[%clk 0:00:40.2]} 25. g4 {[%clk 0:02:39.1]} 25... Kh6 {[%clk 0:00:38.3]} 26.
Rc1 {[%clk 0:02:37.2]} 26... Kg5 {[%clk 0:00:37.7]} 27. Rxc7 {[%clk 0:02:37.2]}
27... Bg1 {[%clk 0:00:35]} 28. Rg7+ {[%clk 0:02:36.1]} 28... Kf4 {[%clk
0:00:33.7]} 29. Rg6 {[%clk 0:02:36.1]} 29... Kg3 {[%clk 0:00:29.2]} 30. Rxf6
{[%clk 0:02:35.7]} 30... d5 {[%clk 0:00:20.5]} 31. Bxe5+ {[%clk 0:02:31.5]}
31... Kh4 {[%clk 0:00:18.6]} 32. exd5 {[%clk 0:02:30.4]} 32... Bh2 {[%clk
0:00:20.5]} 33. Bxh2 {[%clk 0:02:29.8]} 33... Kg5 {[%clk 0:00:17.9]} 34. Rg6+
{[%clk 0:02:30.3]} 34... Kh4 {[%clk 0:00:17.8]} 35. d6 {[%clk 0:02:31.3]} 35...
Rd8 {[%clk 0:00:17.3]} 36. h6 {[%clk 0:02:30.9]} 36... Re8+ {[%clk 0:00:18]} 37.
Re6 {[%clk 0:02:28.5]} 37... Kg5 {[%clk 0:00:12.8]} 38. Rxe8 {[%clk 0:02:28.7]}
38... Kf6 {[%clk 0:00:13]} 39. d7 {[%clk 0:02:28.8]} 39... Kg5 {[%clk
0:00:12.5]} 40. d8=Q+ {[%clk 0:02:28.8]} 40... Kxh6 {[%clk 0:00:11.5]} 41. Bf4+
{[%clk 0:02:28.6]} 41... Kg7 {[%clk 0:00:12]} 42. Qe7# {[%clk 0:02:29.5]} 1

[Event "Torneo Nuevo Centro. Jornada 10"]
[Site "Chess.com"]
[Date "2020.08.21"]
[Round "2"]
[White "Cebolla Ruiz, David"]
[Black "Sanchis Bon, Sergi"]
[Result "1-0"]
[WhiteElo "1562"]
[BlackElo "1002"]
[TimeControl "180+2"]
[EndTime "10:47:05 PDT"]
[Termination "Victoria de Dabelcebolla por abandono"]

1. e4 {[%clk 0:03:01.9]} 1... e5 {[%clk 0:02:59.3]} 2. Nf3 {[%clk 0:03:02.3]}
2... Nc6 {[%clk 0:02:57.3]} 3. Bb5 {[%clk 0:02:59.9]} 3... Bc5 {[%clk
0:02:50.9]} 4. Bxc6 {[%clk 0:02:58.7]} 4... bxc6 {[%clk 0:02:48.9]} 5. d4 {[%clk
0:02:58.6]} 5... exd4 {[%clk 0:02:46.5]} 6. Nxd4 {[%clk 0:02:58.2]} 6... Nf6
{[%clk 0:02:44.7]} 7. Bg5 {[%clk 0:02:58]} 7... h6 {[%clk 0:02:42.6]} 8. Bh4
{[%clk 0:02:58.6]} 8... g5 {[%clk 0:02:41.1]} 9. Bg3 {[%clk 0:02:59]} 9... Qe7
{[%clk 0:02:33.8]} 10. e5 {[%clk 0:02:55.6]} 10... d6 {[%clk 0:02:21.6]} 11.
Nxc6 {[%clk 0:02:41]} 11... Qe6 {[%clk 0:02:13.8]} 12. O-O {[%clk 0:02:31.2]}
12... Ba6 {[%clk 0:02:08.1]} 13. Re1 {[%clk 0:02:27.2]} 13... dxe5 {[%clk
0:02:05]} 14. Rxe5 {[%clk 0:02:25.9]} 14... Qxe5 {[%clk 0:01:53.7]} 15. Bxe5
{[%clk 0:02:24.7]} 15... Ng4 {[%clk 0:01:46.1]} 16. Bxh8 {[%clk 0:02:11.6]}
16... Nxf2 {[%clk 0:01:37]} 17. Qe1+ {[%clk 0:02:03.6]} 17... Kf8 {[%clk
0:01:29.7]} 18. Bd4 {[%clk 0:01:50.9]} 18... Bxd4 {[%clk 0:01:19.4]} 19. Nxd4
{[%clk 0:01:50.6]} 19... Ng4 {[%clk 0:01:18.3]} 20. Nf5 {[%clk 0:01:45.4]} 20...
Rb8 {[%clk 0:01:14.3]} 21. b3 {[%clk 0:01:38.6]} 21... Rd8 {[%clk 0:01:09.5]}
22. Qe7+ {[%clk 0:01:37.7]} 22... Kg8 {[%clk 0:01:07.4]} 23. Qxd8+ {[%clk
0:01:38.4]} 23... Kh7 {[%clk 0:01:07.3]} 24. Qd5 {[%clk 0:01:21.7]} 24... Kg6
{[%clk 0:00:48.6]} 25. Ne7+ {[%clk 0:01:15.4]} 25... Kf6 {[%clk 0:00:33.9]} 26.
Qf5+ {[%clk 0:01:00.8]} 26... Kxe7 {[%clk 0:00:32.1]} 27. Qxg4 {[%clk
0:01:01.8]} 27... f6 {[%clk 0:00:22]} 28. Nc3 {[%clk 0:00:59.7]} 28... Kf7
{[%clk 0:00:19.9]} 1

[Event "Torneo Nuevo Centro. Jornada 10"]
[Site "Chess.com"]
[Date "2020.08.21"]
[Round "2"]
[White "Sos Andreu, Eric"]
[Black "Conon, Catalin"]
[Result "1-0"]
[WhiteElo "2520"]
[BlackElo "1915"]
[TimeControl "180+2"]
[EndTime "10:47:13 PDT"]
[Termination "Victoria de ericovski por jaque mate"]

1. c4 {[%clk 0:03:00.8]} 1... Nf6 {[%clk 0:02:56.8]} 2. Nc3 {[%clk 0:03:01.3]}
2... e6 {[%clk 0:02:57.9]} 3. e4 {[%clk 0:03:01.9]} 3... d5 {[%clk 0:02:58.9]}
4. e5 {[%clk 0:03:00.3]} 4... d4 {[%clk 0:03:00.2]} 5. exf6 {[%clk 0:03:01.7]}
5... dxc3 {[%clk 0:03:01.5]} 6. bxc3 {[%clk 0:03:03.6]} 6... Qxf6 {[%clk
0:03:02.6]} 7. d4 {[%clk 0:03:04.8]} 7... e5 {[%clk 0:03:03.8]} 8. Nf3 {[%clk
0:03:03.4]} 8... exd4 {[%clk 0:03:03.5]} 9. cxd4 {[%clk 0:03:05.3]} 9... h6
{[%clk 0:03:04.8]} 10. Bd3 {[%clk 0:03:02.2]} 10... Bb4+ {[%clk 0:03:05.4]} 11.
Bd2 {[%clk 0:03:00.8]} 11... Bxd2+ {[%clk 0:03:06.4]} 12. Qxd2 {[%clk
0:03:00.5]} 12... O-O {[%clk 0:03:08.3]} 13. O-O {[%clk 0:03:00.5]} 13... Nc6
{[%clk 0:03:08]} 14. d5 {[%clk 0:02:55.9]} 14... Ne5 {[%clk 0:03:08.5]} 15. Nxe5
{[%clk 0:02:55.5]} 15... Qxe5 {[%clk 0:03:10.4]} 16. Rae1 {[%clk 0:02:55.8]}
16... Qf6 {[%clk 0:03:11.3]} 17. Qb4 {[%clk 0:02:46.3]} 17... b6 {[%clk
0:02:28.6]} 18. Bh7+ {[%clk 0:02:32.1]} 18... Kxh7 {[%clk 0:02:21]} 19. Qxf8
{[%clk 0:02:32.9]} 19... Bb7 {[%clk 0:01:43.4]} 20. Qe7 {[%clk 0:02:33.3]} 20...
Qxe7 {[%clk 0:01:35]} 21. Rxe7 {[%clk 0:02:35.2]} 21... Ba6 {[%clk 0:01:36.6]}
22. Rxc7 {[%clk 0:02:35.6]} 22... Kg6 {[%clk 0:01:33.7]} 23. Re1 {[%clk
0:02:34.9]} 23... Rd8 {[%clk 0:01:02.8]} 24. f3 {[%clk 0:02:35.4]} 24... b5
{[%clk 0:00:49.8]} 25. Rc6+ {[%clk 0:02:31.8]} 25... Kf5 {[%clk 0:00:49.1]} 26.
Rxa6 {[%clk 0:02:31.9]} 26... bxc4 {[%clk 0:00:51]} 27. Rc6 {[%clk 0:02:31]}
27... Rxd5 {[%clk 0:00:50.1]} 28. Rxc4 {[%clk 0:02:31.9]} 28... f6 {[%clk
0:00:51]} 29. Re2 {[%clk 0:02:31.5]} 29... Rd1+ {[%clk 0:00:52]} 30. Kf2 {[%clk
0:02:32.8]} 30... Rh1 {[%clk 0:00:53]} 31. Kg3 {[%clk 0:02:32.7]} 31... h5
{[%clk 0:00:52.2]} 32. h4 {[%clk 0:02:33.8]} 32... Kg6 {[%clk 0:00:52.5]} 33.
Ra4 {[%clk 0:02:33.3]} 33... Rd1 {[%clk 0:00:52.8]} 34. Rxa7 {[%clk 0:02:33.8]}
34... Kh6 {[%clk 0:00:53.7]} 35. Ree7 {[%clk 0:02:34.1]} 35... g5 {[%clk
0:00:50.2]} 36. Rh7+ {[%clk 0:02:35]} 36... Kg6 {[%clk 0:00:51.5]} 37. Rag7+
{[%clk 0:02:36.7]} 37... Kf5 {[%clk 0:00:53]} 38. hxg5 {[%clk 0:02:37.9]} 38...
fxg5 {[%clk 0:00:54.9]} 39. Rxh5 {[%clk 0:02:38.8]} 39... Rd2 {[%clk 0:00:53.2]}
40. Rgxg5+ {[%clk 0:02:39.3]} 40... Kf6 {[%clk 0:00:54.7]} 41. Rd5 {[%clk
0:02:40.1]} 41... Rxa2 {[%clk 0:00:52.8]} 42. Rh6+ {[%clk 0:02:41.3]} 42... Kg7
{[%clk 0:00:53.7]} 43. Rc6 {[%clk 0:02:41.8]} 43... Ra7 {[%clk 0:00:55.2]} 44.
Kg4 {[%clk 0:02:41.1]} 44... Rf7 {[%clk 0:00:55.6]} 45. Kh5 {[%clk 0:02:40.2]}
45... Kh7 {[%clk 0:00:52.9]} 46. Rh6+ {[%clk 0:02:40.8]} 46... Kg7 {[%clk
0:00:53.8]} 47. Rg5+ {[%clk 0:02:41.8]} 47... Kf8 {[%clk 0:00:55.2]} 48. g4
{[%clk 0:02:36]} 48... Ke7 {[%clk 0:00:34.5]} 49. Re5+ {[%clk 0:02:33.9]} 49...
Kf8 {[%clk 0:00:34.7]} 50. Rf5 {[%clk 0:02:32.4]} 50... Rxf5+ {[%clk 0:00:32.9]}
51. gxf5 {[%clk 0:02:34.3]} 51... Kf7 {[%clk 0:00:34.7]} 52. Kg5 {[%clk
0:02:35.6]} 52... Kg7 {[%clk 0:00:36.6]} 53. f6+ {[%clk 0:02:36.7]} 53... Kf7
{[%clk 0:00:38.5]} 54. Rh7+ {[%clk 0:02:37.3]} 54... Kg8 {[%clk 0:00:39.9]} 55.
Ra7 {[%clk 0:02:37.6]} 55... Kf8 {[%clk 0:00:35.9]} 56. Kg6 {[%clk 0:02:38.2]}
56... Ke8 {[%clk 0:00:36.7]} 57. f7+ {[%clk 0:02:39.1]} 57... Kd8 {[%clk
0:00:38.2]} 58. f8=Q# {[%clk 0:02:39.7]} 1

[Event "Torneo Nuevo Centro. Jornada 10"]
[Site "Chess.com"]
[Date "2020.08.21"]
[Round "2"]
[White "Conejero Martínez, Víctor"]
[Black "Pedros Viudes, Santiago"]
[Result "0-1"]
[WhiteElo "1393"]
[BlackElo "1923"]
[TimeControl "180+2"]
[EndTime "10:47:29 PDT"]
[Termination "Victoria de ElGatoKamsky por tiempo"]

1. d4 {[%clk 0:03:01.9]} 1... Nf6 {[%clk 0:03:00.9]} 2. c4 {[%clk 0:03:02.8]}
2... e5 {[%clk 0:03:01.9]} 3. Nc3 {[%clk 0:03:03.3]} 3... Nc6 {[%clk 0:03:02]}
4. Nf3 {[%clk 0:03:03.7]} 4... exd4 {[%clk 0:02:53]} 5. Nxd4 {[%clk 0:03:02.7]}
5... Bb4 {[%clk 0:02:54]} 6. Bg5 {[%clk 0:02:47.9]} 6... h6 {[%clk 0:02:50.9]}
7. Bf4 {[%clk 0:02:47.6]} 7... Ne4 {[%clk 0:02:35.6]} 8. Qc2 {[%clk 0:02:25.7]}
8... Nxc3 {[%clk 0:01:25]} 9. bxc3 {[%clk 0:02:21.5]} 9... Nxd4 {[%clk
0:01:24.7]} 10. Qe4+ {[%clk 0:02:19.8]} 10... Ne6 {[%clk 0:01:17.4]} 11. cxb4
{[%clk 0:02:19.1]} 11... Qf6 {[%clk 0:01:18.8]} 12. Be5 {[%clk 0:02:01.3]} 12...
Qe7 {[%clk 0:01:14.6]} 13. a3 {[%clk 0:01:28.6]} 13... O-O {[%clk 0:00:58]} 14.
e3 {[%clk 0:01:22.6]} 14... f5 {[%clk 0:00:56.1]} 15. Qc2 {[%clk 0:00:39]} 15...
f4 {[%clk 0:00:53.9]} 16. Bd3 {[%clk 0:00:19.8]} 16... fxe3 {[%clk 0:00:50.2]}
17. Bh7+ {[%clk 0:00:20.3]} 17... Kh8 {[%clk 0:00:50.6]} 18. fxe3 {[%clk
0:00:18]} 18... Nf4 {[%clk 0:00:40.1]} 19. exf4 {[%clk 0:00:15.9]} 19... d6
{[%clk 0:00:35.6]} 20. Qg6 {[%clk 0:00:06.8]} 20... dxe5 {[%clk 0:00:30.6]} 21.
f5 {[%clk 0:00:05.8]} 21... Bxf5 {[%clk 0:00:26.6]} 0

[Event "Torneo Nuevo Centro. Jornada 10"]
[Site "Chess.com"]
[Date "2020.08.21"]
[Round "2"]
[White "Luque Saiz, Andrés"]
[Black "Mellado Sais, Carles"]
[Result "1-0"]
[WhiteElo "2042"]
[BlackElo "1367"]
[TimeControl "180+2"]
[EndTime "10:47:38 PDT"]
[Termination "Victoria de Chuch1n por abandono"]

1. e4 {[%clk 0:03:01.9]} 1... c5 {[%clk 0:02:46.9]} 2. Nf3 {[%clk 0:03:01.1]}
2... d6 {[%clk 0:02:45.5]} 3. d3 {[%clk 0:03:01.2]} 3... Nf6 {[%clk 0:02:41.3]}
4. g3 {[%clk 0:03:01.5]} 4... e5 {[%clk 0:02:37.8]} 5. Bg2 {[%clk 0:03:01.1]}
5... Be7 {[%clk 0:02:34.6]} 6. O-O {[%clk 0:03:01.5]} 6... O-O {[%clk
0:02:27.8]} 7. c3 {[%clk 0:02:57.7]} 7... Nc6 {[%clk 0:02:25.8]} 8. Nbd2 {[%clk
0:02:58.1]} 8... Bg4 {[%clk 0:02:24.4]} 9. h3 {[%clk 0:02:58.3]} 9... Bh5 {[%clk
0:02:23.5]} 10. g4 {[%clk 0:02:57.4]} 10... Bg6 {[%clk 0:02:22.5]} 11. Nh4
{[%clk 0:02:57.3]} 11... h6 {[%clk 0:02:17.3]} 12. Ndf3 {[%clk 0:02:17.3]} 12...
Nd7 {[%clk 0:02:08.1]} 13. Nf5 {[%clk 0:02:14.3]} 13... Bxf5 {[%clk 0:02:04.2]}
14. exf5 {[%clk 0:02:13.9]} 14... f6 {[%clk 0:02:03.1]} 15. Nh4 {[%clk
0:01:59.6]} 15... Nb6 {[%clk 0:01:55.7]} 16. Ng6 {[%clk 0:01:59.1]} 16... Re8
{[%clk 0:01:53.9]} 17. a4 {[%clk 0:01:55.9]} 17... a5 {[%clk 0:01:50.5]} 18. Be3
{[%clk 0:01:46]} 18... d5 {[%clk 0:01:46.1]} 19. Qd2 {[%clk 0:01:46.2]} 19... d4
{[%clk 0:01:44]} 20. Bxh6 {[%clk 0:01:20.5]} 20... c4 {[%clk 0:01:02.6]} 21.
dxc4 {[%clk 0:00:52.4]} 21... Nxc4 {[%clk 0:01:00.8]} 22. Qd3 {[%clk 0:00:53.1]}
22... Nb6 {[%clk 0:00:50.3]} 23. Bd2 {[%clk 0:00:52]} 23... dxc3 {[%clk
0:00:44.1]} 24. Qxc3 {[%clk 0:00:52.3]} 24... Nd5 {[%clk 0:00:38.6]} 25. Qb3
{[%clk 0:00:50.7]} 25... Nb4 {[%clk 0:00:25.9]} 26. Bxb4 {[%clk 0:00:50.9]}
26... Bxb4 {[%clk 0:00:26]} 27. Bxd5+ {[%clk 0:00:48.9]} 27... Kh7 {[%clk
0:00:26.4]} 28. Bf7 {[%clk 0:00:47.3]} 28... Rf8 {[%clk 0:00:20]} 29. Nxf8+
{[%clk 0:00:47.3]} 29... Qxf8 {[%clk 0:00:20.3]} 30. Bg6+ {[%clk 0:00:49.2]}
30... Kh8 {[%clk 0:00:20.3]} 31. Qg3 {[%clk 0:00:50.7]} 1

[Event "Torneo Nuevo Centro. Jornada 10"]
[Site "Chess.com"]
[Date "2020.08.21"]
[Round "2"]
[White "Rabbani Perez, Oumaima "]
[Black "Gukasov, Artem"]
[Result "0-1"]
[WhiteElo "690"]
[BlackElo "1443"]
[TimeControl "180+2"]
[EndTime "10:47:40 PDT"]
[Termination "Victoria de ArtemGukasov por tiempo"]

1. e3 {[%clk 0:03:01.1]} 1... e6 {[%clk 0:02:58.3]} 2. Bd3 {[%clk 0:02:58.1]}
2... d5 {[%clk 0:02:58]} 3. Nf3 {[%clk 0:02:52.8]} 3... c5 {[%clk 0:02:59]} 4.
Bb5+ {[%clk 0:02:47.7]} 4... Bd7 {[%clk 0:02:58.4]} 5. Bxd7+ {[%clk 0:02:46.9]}
5... Qxd7 {[%clk 0:03:00.3]} 6. O-O {[%clk 0:02:36.8]} 6... Nc6 {[%clk
0:03:00.2]} 7. h3 {[%clk 0:02:34.7]} 7... Nge7 {[%clk 0:02:53]} 8. Nc3 {[%clk
0:02:29.5]} 8... Ng6 {[%clk 0:02:52.2]} 9. Na4 {[%clk 0:02:24.6]} 9... Be7
{[%clk 0:02:51]} 10. b3 {[%clk 0:02:19.3]} 10... O-O {[%clk 0:02:50.6]} 11. Ba3
{[%clk 0:02:15.7]} 11... b6 {[%clk 0:02:24.9]} 12. Nh4 {[%clk 0:01:56.3]} 12...
Bxh4 {[%clk 0:02:22.5]} 13. Nxc5 {[%clk 0:01:44.4]} 13... bxc5 {[%clk 0:02:22]}
14. Bxc5 {[%clk 0:01:43.5]} 14... Be7 {[%clk 0:02:16.3]} 15. Bxe7 {[%clk
0:01:42.6]} 15... Ngxe7 {[%clk 0:02:15.3]} 16. Rb1 {[%clk 0:01:22]} 16... e5
{[%clk 0:02:12.3]} 17. d4 {[%clk 0:01:15]} 17... exd4 {[%clk 0:02:08.7]} 18.
exd4 {[%clk 0:01:13.9]} 18... Ng6 {[%clk 0:02:08.7]} 19. Re1 {[%clk 0:00:54.2]}
19... Rfe8 {[%clk 0:02:07]} 20. Rxe8+ {[%clk 0:00:42.8]} 20... Rxe8 {[%clk
0:02:04.8]} 21. c3 {[%clk 0:00:37]} 21... Qe7 {[%clk 0:02:00.6]} 22. b4 {[%clk
0:00:28.3]} 22... a6 {[%clk 0:02:00.2]} 23. a4 {[%clk 0:00:23]} 23... Qe2 {[%clk
0:01:59.5]} 24. Qxe2 {[%clk 0:00:21.1]} 24... Rxe2 {[%clk 0:01:59.9]} 25. b5
{[%clk 0:00:19.5]} 25... axb5 {[%clk 0:01:30]} 26. axb5 {[%clk 0:00:19]} 26...
Nb8 {[%clk 0:01:23.7]} 27. b6 {[%clk 0:00:16.8]} 27... Re8 {[%clk 0:01:19.7]}
28. b7 {[%clk 0:00:15.6]} 28... Ne7 {[%clk 0:01:19]} 29. Ra1 {[%clk 0:00:13.5]}
29... Nec6 {[%clk 0:01:19]} 30. Rb1 {[%clk 0:00:08.7]} 30... h5 {[%clk
0:01:16.7]} 31. g4 {[%clk 0:00:06.9]} 31... hxg4 {[%clk 0:01:16.5]} 32. hxg4
{[%clk 0:00:07.3]} 32... Re7 {[%clk 0:01:17.5]} 33. c4 {[%clk 0:00:05.4]} 33...
dxc4 {[%clk 0:01:18.2]} 34. d5 {[%clk 0:00:05.1]} 34... Na5 {[%clk 0:01:18.4]}
35. d6 {[%clk 0:00:02.8]} 35... Rxb7 {[%clk 0:01:18.2]} 0

[Event "Torneo Nuevo Centro. Jornada 10"]
[Site "Chess.com"]
[Date "2020.08.21"]
[Round "2"]
[White "Orts Tomás, Marc"]
[Black "Macias Pino, Diego"]
[Result "0-1"]
[WhiteElo "1857"]
[BlackElo "2231"]
[TimeControl "180+2"]
[EndTime "10:47:59 PDT"]
[Termination "Victoria de adivinaquiensoy por jaque mate"]

1. c4 {[%clk 0:03:01.9]} 1... e6 {[%clk 0:02:50.6]} 2. g3 {[%clk 0:03:00.6]}
2... d5 {[%clk 0:02:52.5]} 3. Bg2 {[%clk 0:03:01.9]} 3... dxc4 {[%clk
0:02:49.7]} 4. Nf3 {[%clk 0:03:03.2]} 4... Nf6 {[%clk 0:02:48.3]} 5. O-O {[%clk
0:03:03.7]} 5... a6 {[%clk 0:02:48.5]} 6. a4 {[%clk 0:03:04.4]} 6... Nc6 {[%clk
0:02:48]} 7. Na3 {[%clk 0:03:04.2]} 7... Na5 {[%clk 0:02:45.1]} 8. Qc2 {[%clk
0:03:01.7]} 8... Qd5 {[%clk 0:02:16.7]} 9. Rd1 {[%clk 0:02:39]} 9... Bd6 {[%clk
0:01:53.1]} 10. d3 {[%clk 0:02:38]} 10... cxd3 {[%clk 0:01:51.3]} 11. Rxd3
{[%clk 0:02:38.7]} 11... Qc6 {[%clk 0:01:47.4]} 12. Rc3 {[%clk 0:02:38.7]} 12...
Qd7 {[%clk 0:01:47.3]} 13. Bg5 {[%clk 0:02:22.8]} 13... O-O {[%clk 0:01:45.2]}
14. Rd1 {[%clk 0:02:19.9]} 14... Qe7 {[%clk 0:01:29.4]} 15. e4 {[%clk
0:02:12.8]} 15... e5 {[%clk 0:01:27.5]} 16. Bxf6 {[%clk 0:01:00.5]} 16... Qxf6
{[%clk 0:01:24.9]} 17. Nd2 {[%clk 0:00:56.3]} 17... Be6 {[%clk 0:01:13.5]} 18.
Nac4 {[%clk 0:00:51.8]} 18... Nxc4 {[%clk 0:01:14.3]} 19. Nxc4 {[%clk
0:00:53.7]} 19... Bb4 {[%clk 0:01:15]} 20. Rb3 {[%clk 0:00:43.8]} 20... a5
{[%clk 0:01:15]} 21. Rbd3 {[%clk 0:00:44.8]} 21... b6 {[%clk 0:01:04.2]} 22. Ne3
{[%clk 0:00:41.8]} 22... Bd6 {[%clk 0:00:58.6]} 23. Qc6 {[%clk 0:00:29.2]} 23...
Rad8 {[%clk 0:00:45.9]} 24. Nc4 {[%clk 0:00:28.1]} 24... Bxc4 {[%clk 0:00:46.3]}
25. Qxc4 {[%clk 0:00:28.6]} 25... Bc5 {[%clk 0:00:42.2]} 26. Qc2 {[%clk
0:00:20.8]} 26... Bd4 {[%clk 0:00:34.8]} 27. b3 {[%clk 0:00:19.7]} 27... c5
{[%clk 0:00:32.8]} 28. R3d2 {[%clk 0:00:19]} 28... g6 {[%clk 0:00:33.3]} 29. Bf1
{[%clk 0:00:19.5]} 29... Kg7 {[%clk 0:00:30.3]} 30. Kg2 {[%clk 0:00:20.5]} 30...
h5 {[%clk 0:00:30.9]} 31. Bc4 {[%clk 0:00:21.4]} 31... h4 {[%clk 0:00:31.9]} 32.
Rf1 {[%clk 0:00:22.2]} 32... h3+ {[%clk 0:00:25.6]} 33. Kxh3 {[%clk 0:00:21.4]}
33... Qf3 {[%clk 0:00:27]} 34. Rd3 {[%clk 0:00:21.5]} 34... Rh8# {[%clk
0:00:27.8]} 0